bitfinex/quotes_ETHUSD_20250923
["timestamp","ask_amount","ask_price","bid_price","bid_amount"]
[1758603873647,33.98584966,4182.2,4182.1,0.024]
[1758603874435,33.74484966,4182.2,4182.1,0.024]
[1758603874654,32.97386717,4182.2,4182.1,0.2623]
[1758603875134,33.66206717,4182.2,4182.1,0.024]
[1758603875350,5.3911432,4182.1,4182.0,0.004]
[1758603875664,5.3911432,4182.1,4182.0,0.2423]
[1758603875665,16.04318809,4182.1,4182.0,0.2423]
[1758603877428,16.04318809,4182.1,4182.0,0.004]
[1758603877629,27.82234194,4182.1,4182.0,0.004]
[1758603877938,28.38712443,4182.1,4182.0,0.004]
[1758603878140,28.38712443,4182.1,4181.5,0.004]
[1758603878141,0.792,4182.0,4181.5,0.004]
[1758603878459,17.53354101,4181.7,4181.5,0.004]
[1758603878660,22.39303307,4181.7,4181.5,0.004]
[1758603878965,22.84023307,4181.7,4181.5,0.004]
[1758603879636,23.40501556,4181.7,4181.5,0.004]
[1758603880234,30.41301556,4181.7,4181.5,0.004]
[1758603880443,31.91813556,4181.7,4181.5,0.004]
[1758603882830,31.91813556,4181.7,4181.3,0.004]
[1758603882831,3.792,4181.6,4181.3,0.004]
[1758603883032,0.792,4181.2,4180.8,0.004]
[1758603883246,18.81440851,4180.9,4180.8,0.004]
[1758603883433,23.67452096,4180.9,4180.8,0.004]
[1758603883633,26.11735856,4180.9,4180.8,0.004]
[1758603883865,26.80555856,4180.9,4180.8,0.004]
[1758603885032,25.62894864,4180.9,4180.8,0.004]
[1758603885368,26.64093113,4180.9,4180.8,0.004]
[1758603885574,9.02856205,4180.9,4180.8,0.004]
[1758603885776,6.26194196,4180.9,4180.8,0.6661]
[1758603885939,13.60217882,4180.9,4180.8,0.6661]
[1758603887466,12.32194196,4180.9,4180.8,0.6661]
[1758603888241,13.60279185,4180.9,4180.8,0.6661]
[1758603888558,12.32194196,4180.9,4180.8,0.6661]
[1758603888764,14.76477956,4180.9,4180.8,0.6661]
[1758603889136,14.76477956,4180.9,4180.8,0.2362]
[1758603889775,14.54249575,4180.9,4180.8,0.2362]
[1758603889980,14.7650124,4180.9,4180.8,0.004]
[1758603890178,22.09679489,4180.9,4180.8,0.004]
[1758603890364,2.39205836,4180.5,4180.4,0.6621]
[1758603890682,15.13057821,4180.5,4180.1,0.02]
[1758603890865,0.8547464,4180.3,4180.1,0.02]
[1758603891055,5.50242407,4180.2,4180.1,0.02]
[1758603891250,4.86134529,4180.2,4180.1,0.02]
[1758603891465,5.50242407,4180.2,4180.1,0.02]
[1758603891777,5.50242407,4180.2,4180.1,0.6821]
[1758603891962,1.51142407,4180.2,4180.1,0.6821]
[1758603892168,5.50242407,4180.2,4180.1,0.6821]
[1758603893379,4.86134529,4180.2,4180.1,0.6821]
[1758603893990,5.50315842,4180.2,4180.1,0.6821]
[1758603894373,4.86134529,4180.2,4180.1,0.6821]
[1758603895282,5.50343034,4180.2,4180.1,0.6821]
[1758603895446,4.86134529,4180.2,4180.1,0.6821]
[1758603896744,6.67296239,4180.2,4180.1,0.2522]
[1758603896945,7.52992436,4180.2,4180.1,0.6821]
[1758603897564,9.06519242,4180.2,4180.1,0.2522]
[1758603897772,9.92235132,4180.2,4180.1,0.2522]
[1758603897989,6.67296239,4180.2,4180.1,0.2522]
[1758603898185,9.06592726,4180.2,4180.1,0.2522]
[1758603898516,9.06592726,4180.2,4180.1,0.02]
[1758603898669,13.78504716,4180.2,4180.1,0.02]
[1758603899088,13.34804716,4180.2,4180.1,0.02]
[1758603900702,6.96481713,4180.2,4180.1,0.6821]
[1758603900886,3.87108013,4180.2,4180.1,0.6821]
[1758603901069,4.72829485,4180.2,4180.1,0.6821]
[1758603901398,0.87108013,4180.2,4180.1,3.07438726]
[1758603901584,0.87108013,4180.2,4180.1,3.62146368]
[1758603901785,0.73748208,4180.2,4180.1,1.22917642]
[1758603901991,0.73748208,4180.2,4180.1,3.07438726]
[1758603904816,0.87153054,4180.2,4180.1,0.02]
[1758603904984,0.87153054,4180.2,4180.1,0.2522]
[1758603905189,0.87153054,4180.2,4180.1,0.6821]
[1758603905887,0.87153054,4180.2,4180.1,0.2522]
[1758603906082,5.68121344,4180.2,4180.1,0.02]
[1758603906288,11.75244347,4180.2,4180.1,0.02]
[1758603906818,2.39234449,4180.0,4179.9,0.004]
[1758603907016,5.70721944,4180.0,4179.9,0.004]
[1758603907170,10.38621944,4180.0,4179.9,0.004]
[1758603909936,13.38621944,4180.0,4179.9,0.004]
[1758603910142,3.0,4179.6,4179.1,0.02]
[1758603910285,2.39276492,4179.3,4179.1,0.02]
[1758603910483,4.87203735,4179.2,4179.1,0.02]
[1758603910813,7.2648398,4179.2,4179.1,0.02]
[1758603912685,7.7018398,4179.2,4179.1,0.02]
[1758603913023,9.28881009,4179.2,4179.1,0.02]
[1758603913710,9.21700764,4179.2,4179.1,0.02]
[1758603914320,5.21700764,4179.2,4179.1,0.02]
[1758603914517,4.72832148,4179.2,4179.1,0.2522]
[1758603914729,4.72832148,4179.2,4179.1,0.6821]
[1758603914730,0.87203735,4179.2,4179.1,0.6821]
[1758603914937,4.87103735,4179.2,4179.1,0.6821]
[1758603915591,4.87103735,4179.2,4179.1,0.2522]
[1758603915788,4.87103735,4179.2,4179.1,0.7119]
[1758603915988,4.87103735,4179.2,4179.1,3.1047597]
[1758603916318,4.87203735,4179.2,4179.1,0.7119]
[1758603916494,5.96273799,4179.2,4179.1,0.02]
[1758603916728,11.38173203,4179.2,4179.1,0.02]
[1758603917001,7.87203735,4179.2,4179.1,0.02]
[1758603917197,7.87203735,4179.2,4179.1,0.2695]
[1758603917622,7.87203735,4179.2,4179.1,0.02]
[1758603917794,10.7394398,4179.2,4179.1,0.02]
[1758603917995,9.50060207,4179.2,4179.1,0.02]
[1758603918196,8.51592364,4179.2,4179.1,0.2695]
[1758603919305,7.87403735,4179.2,4179.1,0.2695]
[1758603919490,11.61152609,4179.2,4179.1,0.02]
[1758603921039,10.9696398,4179.2,4179.1,0.02]
[1758603922603,11.82592393,4179.2,4179.1,0.02]
[1758603922943,12.72702092,4179.2,4179.1,0.02]
[1758603924729,13.84280341,4179.2,4179.1,0.02]
[1758603924934,13.84280341,4179.2,4179.0,0.004]
[1758603924935,0.792,4178.8,4178.1,0.02]
[1758603925132,5.39337513,4178.2,4178.1,0.02]
[1758603925295,12.98275928,4178.2,4178.1,0.02]
[1758603925603,15.08050845,4178.2,4178.1,0.02]
[1758603925799,14.66736165,4178.2,4178.1,0.02]
[1758603927232,14.79057499,4178.2,4178.1,0.02]
[1758603928351,15.43148716,4178.2,4178.1,0.02]
[1758603930221,15.43148716,4178.2,4178.1,0.024]
[1758603930618,25.94586047,4178.2,4178.1,0.024]
[1758603931370,25.3049483,4178.2,4178.1,0.024]
[1758603932553,26.16038472,4178.2,4178.1,0.024]
[1758603932853,25.3049483,4178.2,4178.1,0.024]
[1758603933220,26.16038472,4178.2,4178.1,0.024]
[1758603933427,25.3049483,4178.2,4178.1,0.024]
[1758603933637,14.79057499,4178.2,4178.1,0.024]
[1758603933838,25.3049483,4178.2,4178.1,0.024]
[1758603934360,26.0969483,4178.2,4178.1,0.024]
[1758603935630,25.3941483,4178.2,4178.1,0.024]
[1758603935826,26.0969483,4178.2,4178.1,0.024]
[1758603936663,25.3941483,4178.2,4178.1,0.024]
[1758603937278,26.67730294,4178.2,4178.1,0.024]
[1758603937466,25.8687483,4178.2,4178.1,0.024]
[1758603937634,8.01177499,4178.2,4178.1,0.024]
[1758603937834,11.12422161,4178.2,4178.1,0.729]
[1758603938034,10.26841248,4178.2,4178.1,0.729]
[1758603938863,10.26841248,4178.2,4178.1,0.2735]
[1758603939046,11.12422161,4178.2,4178.1,0.024]
[1758603939265,13.56705921,4178.2,4178.1,0.024]
[1758603939487,12.71125008,4178.2,4178.1,0.2735]
[1758603939687,12.71125008,4178.2,4178.1,0.024]
[1758603940437,9.71125008,4178.2,4178.1,0.024]
[1758603940991,9.71097304,4178.2,4178.1,0.024]
[1758603941142,12.71097304,4178.2,4178.1,0.024]
[1758603941662,19.22234635,4178.2,4178.1,0.024]
[1758603941865,25.29634635,4178.2,4178.1,0.024]
[1758603942263,25.77094635,4178.2,4178.1,0.024]
[1758603942481,25.99914635,4178.2,4178.1,0.024]
[1758603943442,27.28230099,4178.2,4178.1,0.024]
[1758603943846,27.05410099,4178.2,4178.1,0.024]
[1758603944164,25.29634635,4178.2,4178.1,0.024]
[1758603945150,2.39343242,4178.1,4177.6,0.004]
[1758603945356,15.90803489,4177.7,4177.6,0.004]
[1758603945565,22.06894984,4177.7,4177.6,0.004]
[1758603946270,20.7857952,4177.7,4177.6,0.004]
[1758603946488,21.2588952,4177.7,4177.6,0.004]
[1758603946821,23.93459309,4177.7,4177.6,0.004]
[1758603946989,23.69559309,4177.7,4177.6,0.004]
[1758603947145,23.22249309,4177.7,4177.6,0.004]
[1758603947345,24.50835701,4177.7,4177.6,0.004]
[1758603947849,26.57835701,4177.7,4177.6,0.6796]
[1758603948070,11.55628581,4177.7,4177.6,0.6796]
[1758603948278,12.34042189,4177.7,4177.6,0.6796]
[1758603949206,12.34072563,4177.7,4177.6,0.6796]
[1758603949403,13.62658955,4177.7,4177.6,0.6796]
[1758603949577,13.62758955,4177.7,4177.6,0.6796]
[1758603950704,16.07042715,4177.7,4177.6,0.245]
[1758603950878,14.78456323,4177.7,4177.6,0.245]
[1758603952266,2.39377618,4177.5,4177.4,0.4346]
[1758603952500,11.56025988,4177.5,4177.4,0.4346]
[1758603952891,9.1664837,4177.5,4177.4,0.4346]
[1758603953469,11.56025988,4177.5,4177.4,0.4346]
[1758603953670,5.1604837,4177.5,4177.4,0.4346]
[1758603953870,9.1654837,4177.5,4177.4,0.4346]
[1758603954072,11.55925988,4177.5,4177.4,0.4346]
[1758603954294,10.27084023,4177.5,4177.4,0.4346]
[1758603954507,7.87706405,4177.5,4177.4,0.6756]
[1758603954700,7.87606405,4177.5,4177.4,0.6756]
[1758603954895,3.87206405,4177.5,4177.4,0.6756]
[1758603955210,0.87206405,4177.5,4177.4,0.6756]
[1758603955411,5.52084839,4177.5,4177.4,3.06943348]
[1758603955612,4.87606405,4177.5,4177.4,3.06943348]
[1758603956184,4.87606405,4177.5,4177.4,0.6756]
[1758603956585,5.52084839,4177.5,4177.4,0.6756]
[1758603956785,5.52084839,4177.5,4177.2,0.004]
[1758603956786,7.91462457,4177.5,4177.2,0.004]
[1758603956984,2.39389079,4177.3,4177.2,0.245]
[1758603957296,7.27095484,4177.3,4177.2,0.004]
[1758603957612,4.87706405,4177.3,4177.2,0.6796]
[1758603960323,7.27095484,4177.3,4177.2,0.004]
[1758603960500,12.1831115,4177.3,4177.2,0.004]
[1758603960886,8.13066492,4177.3,4177.2,0.004]
[1758603961626,8.36966492,4177.3,4177.2,0.004]
[1758603961928,7.50995484,4177.3,4177.2,0.004]
[1758603962505,10.50995484,4177.3,4177.2,0.004]
[1758603963092,10.98305484,4177.3,4177.2,0.004]
[1758603963325,12.4496779,4177.3,4177.2,0.004]
[1758603963527,13.73905281,4177.3,4177.2,0.004]
[1758603963732,7.87706405,4177.3,4177.2,0.004]
[1758603963935,3.87206405,4177.3,4177.2,0.245]
[1758603964230,7.87706405,4177.3,4177.2,0.6796]
[1758603965892,8.73665338,4177.3,4177.2,0.6796]
[1758603966131,7.87706405,4177.3,4177.2,0.6796]
[1758603967001,7.87706405,4177.3,4177.2,0.004]
[1758603967219,7.87706405,4177.3,4177.2,0.6796]
[1758603968710,14.88506405,4177.3,4177.2,0.6796]
[1758603970139,8.52499246,4177.3,4177.2,3.07354809]
[1758603970292,7.008,4177.3,4177.2,3.3833029]
[1758603970691,7.008,4177.3,4177.2,13.89107608]
[1758603973455,0.1192,4177.5,4177.2,13.89107608]
[1758603973456,0.1192,4177.5,4177.4,2.39383348]
[1758603973641,0.1192,4178.0,4177.4,1.73402929]
[1758603973834,0.1192,4178.0,4177.9,2.39354699]
[1758603974150,0.1192,4178.0,4177.9,2.41748245]
[1758603974353,0.1192,4178.0,4177.9,2.65848245]
[1758603974653,0.001,4178.1,4178.0,2.3934897]
[1758603974872,0.001,4178.1,4178.0,4.90788699]
[1758603977974,0.001,4178.1,4178.0,8.91788699]
[1758603978382,0.001,4178.1,4178.0,9.03708699]
[1758603981527,0.001,4178.1,4178.0,12.70988699]
[1758603981731,0.001,4178.1,4178.0,12.82908699]
[1758603983269,0.001,4178.1,4178.0,12.94928699]
[1758603984061,0.001,4178.6,4178.5,3.1852033]
[1758603984263,0.001,4178.6,4178.5,17.82017648]
[1758603984490,0.001,4178.6,4178.5,18.50437648]
[1758603985393,0.001,4178.6,4178.5,19.22363277]
[1758603992674,0.001,4178.6,4178.5,20.86714784]
[1758603993006,0.001,4178.6,4178.5,21.84800943]
[1758603995901,0.001,4178.6,4178.5,21.16380943]
[1758603996072,0.001,4178.6,4178.5,21.40380943]
[1758603996406,0.001,4178.6,4178.5,21.84800943]
[1758603996603,0.001,4178.6,4178.5,5.00452118]
[1758603996788,0.001,4178.6,4178.5,8.21652118]
[1758603996992,0.2269,4178.6,4178.5,7.23565959]
[1758603997183,0.6918,4178.6,4178.5,7.23565959]
[1758603997693,0.6918,4178.6,4178.5,6.5164033]
[1758603998205,0.001,4178.6,4178.5,7.9926033]
[1758604001210,0.001,4178.6,4178.5,8.08850437]
[1758604001414,0.001,4178.6,4178.5,10.53134197]
[1758604001728,0.001,4178.6,4178.5,10.4354409]
[1758604003491,0.001,4178.6,4178.5,5.7472409]
[1758604003697,0.6918,4178.6,4178.5,11.0282409]
[1758604004098,0.6918,4178.6,4178.5,2.5124033]
[1758604004319,0.6918,4178.6,4178.5,6.3982033]
[1758604005732,1.20782766,4178.6,4178.5,6.3982033]
[1758604006031,0.6918,4178.6,4178.5,6.3982033]
[1758604006195,1.20788226,4178.6,4178.5,6.3982033]
[1758604006399,0.6918,4178.6,4178.5,6.3982033]
[1758604006694,0.001,4178.6,4178.5,6.3982033]
[1758604006893,0.001,4178.6,4178.5,9.9595808]
[1758604007118,0.001,4178.6,4178.5,10.0787808]
[1758604008941,0.001,4178.6,4178.5,13.0787808]
[1758604012322,1e-08,4179.1,4179.0,3.18491696]
[1758604012525,0.64492841,4180.7,4180.0,3.792]
[1758604012755,0.2304,4180.4,4180.3,2.39217281]
[1758604012960,0.4742,4180.4,4180.3,6.40117281]
[1758604013445,0.7036,4180.4,4180.3,6.40117281]
[1758604014053,0.7036,4180.4,4180.3,2.39217281]
[1758604014248,0.7036,4180.4,4180.3,6.40317281]
[1758604017699,0.7036,4180.4,4180.3,7.78961309]
[1758604017700,0.001,4180.4,4180.3,7.78961309]
[1758604019786,0.2304,4180.4,4180.3,7.78961309]
[1758604019982,0.7036,4180.4,4180.3,7.78961309]
[1758604020168,0.7036,4180.4,4180.3,3.77861309]
[1758604020349,0.7036,4180.4,4180.3,7.78661309]
[1758604020552,0.7036,4180.4,4179.7,2.3925162]
[1758604020887,0.7026,4180.3,4180.2,2.39223003]
[1758604021091,0.7026,4180.3,4180.2,6.40023003]
[1758604021647,0.7026,4180.3,4180.2,4.008]
[1758604022189,0.7026,4180.3,4179.0,3.3184917]
[1758604022190,1.44072769,4180.3,4179.7,4.008]
[1758604022395,0.73812769,4180.2,4179.7,4.008]
[1758604022548,0.51474748,4180.1,4179.4,2.39268794]
[1758604022886,0.1192,4179.6,4179.5,6.40163069]
[1758604023078,0.8218,4179.6,4179.2,2.39279002]
[1758604023393,0.7026,4179.5,4179.3,4.009]
[1758604023594,0.1192,4179.6,4179.5,2.39263069]
[1758604023885,0.1192,4179.6,4179.5,6.40163069]
[1758604024252,0.8218,4179.6,4179.5,4.009]
[1758604024591,0.8218,4179.6,4179.4,4.009]
[1758604024749,0.7026,4179.5,4178.8,2.39303149]
[1758604024952,0.4732,4179.5,4178.8,2.39303149]
[1758604025292,0.64323673,4179.0,4178.1,0.024]
[1758604025474,2.39337513,4178.2,4178.1,0.024]
[1758604025665,3.26510959,4178.2,4178.1,0.024]
[1758604025866,3.96770959,4178.2,4178.1,0.024]
[1758604026191,1.57433446,4178.2,4178.1,0.024]
[1758604026392,1.05977354,4178.2,4178.1,0.024]
[1758604026577,0.22331265,4178.2,4178.1,0.024]
[1758604026749,0.22331265,4178.3,4178.1,0.024]
[1758604026953,0.92591265,4178.2,4178.1,0.024]
[1758604027387,0.7026,4178.2,4178.1,0.024]
[1758604027902,0.2294,4178.7,4178.1,0.024]
[1758604028050,0.34458495,4178.6,4178.1,0.024]
[1758604028367,2.39327044,4178.4,4178.1,0.024]
[1758604028553,0.22286886,4178.3,4178.1,0.024]
[1758604028952,0.4732,4178.2,4178.1,0.024]
[1758604029364,0.7026,4178.2,4178.1,0.024]
[1758604030381,0.2294,4178.2,4178.1,0.024]
[1758604031815,0.7026,4178.2,4178.1,0.024]
[1758604032000,1.01218705,4178.2,4178.1,0.024]
[1758604032789,3.40556218,4178.2,4178.1,0.024]
[1758604033098,3.62802188,4178.2,4178.1,0.024]
[1758604033505,7.14063474,4178.2,4178.1,0.024]
[1758604033698,7.27403161,4178.2,4178.1,0.024]
[1758604034804,2.39366158,4177.7,4177.6,0.004]
[1758604035002,10.11884548,4177.7,4177.6,0.004]
[1758604035208,10.76476447,4177.7,4177.6,0.004]
[1758604035406,11.46726924,4177.7,4177.6,0.004]
[1758604035906,2.39389079,4177.3,4177.2,0.004]
[1758604036082,8.47704051,4177.3,4177.2,0.004]
[1758604036286,9.16944051,4177.3,4177.2,0.004]
[1758604037806,13.19644051,4177.3,4177.2,0.004]
[1758604039307,13.70671562,4177.3,4177.2,0.004]
[1758604039493,13.70671562,4177.3,4177.1,1e-08]
[1758604039697,7.86957786,4177.2,4177.1,1e-08]
[1758604040226,15.58747786,4177.2,4177.1,1e-08]
[1758604040391,15.58739794,4177.2,4177.1,1e-08]
[1758604041611,2.39417736,4176.8,4176.7,1e-08]
[1758604041812,11.10715065,4176.8,4176.7,1e-08]
[1758604042021,12.32729849,4176.8,4176.7,1e-08]
[1758604042232,12.96429475,4176.8,4176.7,1e-08]
[1758604043416,11.53529849,4176.8,4176.7,1e-08]
[1758604043617,10.93220869,4176.8,4176.7,1e-08]
[1758604043822,11.16290869,4176.8,4176.7,1e-08]
[1758604044133,11.40250869,4176.8,4176.7,1e-08]
[1758604044505,10.69260869,4176.8,4176.7,1e-08]
[1758604044711,7.1558849,4176.8,4176.7,1e-08]
[1758604044900,6.64563706,4176.8,4176.7,1e-08]
[1758604045097,10.1550937,4176.8,4176.7,1e-08]
[1758604045299,10.86367712,4176.8,4176.7,1e-08]
[1758604045911,11.47600343,4176.8,4176.7,1e-08]
[1758604046122,12.01179905,4176.8,4176.7,1e-08]
[1758604046608,12.64819918,4176.8,4176.7,1e-08]
[1758604046803,12.17789918,4176.8,4176.7,1e-08]
[1758604047023,11.16922511,4176.8,4176.7,1e-08]
[1758604047536,12.01196859,4176.8,4176.7,1e-08]
[1758604048098,12.87155792,4176.8,4176.7,1e-08]
[1758604049110,12.01196859,4176.8,4176.7,1e-08]
[1758604049640,11.30606859,4176.8,4176.7,1e-08]
[1758604050904,12.01596859,4176.8,4176.7,1e-08]
[1758604051132,13.3053435,4176.8,4176.7,1e-08]
[1758604051442,12.01596859,4176.8,4176.7,1e-08]
[1758604051940,11.96596859,4176.8,4176.7,1e-08]
[1758604052379,2.51343468,4176.7,4176.6,0.004]
[1758604052676,4.63786794,4176.7,4176.6,0.004]
[1758604052869,4.87746794,4176.7,4176.6,0.004]
[1758604053637,11.88546794,4176.7,4176.6,0.004]
[1758604054338,2.34440666,4176.4,4176.3,0.004]
[1758604054538,9.3108499,4176.4,4176.3,0.004]
[1758604054739,10.92090241,4176.4,4176.3,0.004]
[1758604054951,11.16050241,4176.4,4176.3,0.004]
[1758604055154,11.63080241,4176.4,4176.3,0.004]
[1758604055978,2.51366399,4176.3,4176.2,0.004]
[1758604056275,11.87085522,4176.3,4176.2,0.004]
[1758604056463,2.39452133,4176.2,4176.1,0.02]
[1758604056661,7.99986457,4176.2,4176.1,0.02]
[1758604057958,2.39457867,4176.1,4175.3,0.2483]
[1758604058158,2.39509484,4175.2,4175.0,0.2483]
[1758604058440,7.28953808,4175.2,4175.1,0.2683]
[1758604058643,7.28953808,4175.2,4175.1,0.722]
[1758604058876,7.28953808,4175.2,4175.1,0.02]
[1758604059079,8.57271515,4175.2,4175.1,0.722]
[1758604059380,8.60533112,4175.2,4175.1,0.02]
[1758604060386,13.55544067,4175.2,4175.1,0.02]
[1758604060561,11.84493112,4175.2,4175.1,0.02]
[1758604060754,12.31523112,4175.2,4175.1,0.02]
[1758604061155,11.84493112,4175.2,4175.1,0.02]
[1758604061970,11.84774409,4175.2,4175.1,0.02]
[1758604062168,2.39532432,4174.8,4174.7,0.0048]
[1758604062372,7.29258053,4174.8,4174.7,0.4585]
[1758604062874,7.29258053,4174.8,4174.7,0.7068]
[1758604064204,9.00611553,4174.8,4174.7,0.7068]
[1758604064402,9.00611553,4174.8,4174.2,0.004]
[1758604064403,2.39538203,4174.7,4174.2,0.004]
[1758604064572,1.28575942,4174.3,4174.2,0.004]
[1758604064777,6.18201563,4174.3,4174.2,0.004]
[1758604065284,4.89639676,4174.3,4174.2,0.004]
[1758604066516,7.58626747,4174.3,4174.2,0.004]
[1758604067213,2.39577103,4174.1,4173.8,0.6628]
[1758604067410,1.28591417,4173.9,4173.8,0.4564]
[1758604067616,2.15231093,4173.9,4173.8,0.4564]
[1758604068111,2.15231093,4173.9,4173.8,0.6628]
[1758604068286,3.26223758,4173.9,4173.5,0.4564]
[1758604068475,1.28605202,4173.7,4173.6,0.6628]
[1758604068682,0.86639676,4173.7,4173.1,0.35276606]
[1758604069006,0.85721571,4173.3,4173.1,0.35276606]
[1758604069203,0.86639676,4173.2,4173.1,0.02]
[1758604069711,0.81639676,4173.2,4173.1,0.02]
[1758604069911,0.81639676,4173.2,4173.1,0.6828]
[1758604071314,0.6824564,4173.2,4173.1,0.6828]
[1758604071615,0.81634325,4173.2,4173.1,0.6828]
[1758604071819,0.6824564,4173.2,4173.1,0.6828]
[1758604072614,0.6324564,4173.2,4173.1,0.6828]
[1758604073186,1.27502548,4173.2,4173.1,0.6828]
[1758604073594,1.27502548,4173.2,4173.1,0.99072094]
[1758604073831,1.27502548,4173.2,4173.1,3.41098405]
[1758604074124,0.6324564,4173.2,4173.1,0.99072094]
[1758604075027,0.6324564,4173.2,4173.1,3.38702105]
[1758604075233,0.6324564,4173.2,4173.1,0.99072094]
[1758604075393,0.6324564,4173.2,4173.1,0.6828]
[1758604078330,0.63261139,4173.2,4173.1,0.6828]
[1758604080640,0.63261139,4173.2,4173.1,0.02]
[1758604081134,0.63261139,4173.2,4173.1,0.024]
[1758604082253,1.10071139,4173.2,4173.1,0.024]
[1758604082423,5.18495841,4173.2,4173.1,0.024]
[1758604083243,2.78871572,4173.2,4173.1,0.024]
[1758604083415,1.47900826,4173.2,4173.1,0.024]
[1758604084213,2.12253379,4173.2,4173.1,0.024]
[1758604084426,2.12290914,4173.2,4173.1,0.024]
[1758604084640,4.51915183,4173.2,4173.1,0.024]
[1758604084802,2.12290914,4173.2,4173.1,0.024]
[1758604085317,4.51915183,4173.2,4173.1,0.024]
[1758604085515,2.12290914,4173.2,4173.1,0.024]
[1758604085745,15.58639287,4173.2,4173.1,0.024]
[1758604086048,18.58639287,4173.2,4173.1,0.024]
[1758604087138,19.87221644,4173.2,4173.1,0.024]
[1758604087348,18.58639287,4173.2,4173.1,0.024]
[1758604088060,2.39652982,4172.7,4172.6,0.004]
[1758604088344,10.59791594,4172.7,4172.6,0.004]
[1758604088542,9.98411137,4172.7,4172.6,0.004]
[1758604088745,9.97291343,4172.7,4172.6,0.004]
[1758604091240,10.61605275,4172.7,4172.6,0.004]
[1758604091444,9.97291343,4172.7,4172.6,0.004]
[1758604091954,2.39658725,4172.6,4171.7,2.98385743]
[1758604092252,7.18663365,4172.5,4171.7,2.98385743]
[1758604092446,0.632911,4172.4,4171.7,1.12490735]
[1758604092752,4.655911,4172.3,4171.8,2.39704045]
[1758604092926,4.24645436,4172.2,4171.9,0.2064]
[1758604093129,0.22345436,4172.1,4171.7,0.53810735]
[1758604093420,6.41983995,4172.2,4171.6,0.1064]
[1758604093643,0.22322852,4172.1,4171.3,10.53102592]
[1758604093970,0.22322852,4172.0,4171.4,1.4457102]
[1758604094148,0.22322852,4171.9,4171.4,0.381]
[1758604094354,4.2673,4172.2,4171.5,2.77821153]
[1758604094539,0.73746646,4172.1,4171.5,0.381]
[1758604094867,0.22320169,4172.0,4171.5,2.77820528]
[1758604095030,4.022,4172.3,4171.6,1.47220259]
[1758604095238,0.73757967,4172.2,4171.6,3.48832069]
[1758604095432,0.2232361,4172.1,4171.7,2.88449498]
[1758604095674,0.2232361,4172.1,4171.6,1.09120259]
[1758604095675,0.2232361,4172.0,4171.8,0.4874]
[1758604095854,4.022,4172.3,4171.9,11.17628618]
[1758604096033,13.15115313,4172.2,4171.0,0.1064]
[1758604096233,4.2634,4172.3,4171.2,0.381]
[1758604096234,0.73761114,4172.1,4171.2,0.381]
[1758604096552,4.92385291,4172.0,4171.1,0.1264]
[1758604096758,4.24825291,4171.9,4171.3,2.39731383]
[1758604097067,4.025,4171.9,4171.5,2.39720557]
[1758604097303,4.025,4171.9,4171.1,0.5074]
[1758604097480,4.025,4171.9,4171.4,2.39723072]
[1758604097779,4.2664,4171.9,4171.1,0.37074]
[1758604098170,4.2664,4171.9,4171.1,2.76818661]
[1758604098366,4.2664,4171.9,4171.4,2.3972754]
[1758604098591,4.025,4171.9,4171.2,0.02397391]
[1758604098898,4.025,4171.9,4171.6,2.39711697]
[1758604099365,4.025,4171.9,4171.4,0.02397276]
[1758604099549,0.51427076,4172.2,4171.5,0.77827069]
[1758604099755,0.22319782,4172.1,4172.0,2.39693192]
[1758604099978,4.025,4172.5,4172.2,2.39678701]
[1758604099979,0.51428129,4172.4,4172.2,2.39678701]
[1758604100160,0.22320819,4172.3,4172.2,2.39678701]
[1758604100361,0.22320819,4172.3,4171.7,0.1064]
[1758604100585,0.22321864,4172.2,4171.8,2.39703778]
[1758604100784,4.7036,4172.5,4169.4,1.0]
[1758604100785,0.22321809,4172.1,4169.4,1.0]
[1758604100982,0.6786,4172.2,4171.2,4.1324]
[1758604101282,0.22321361,4172.1,4171.8,2.39704279]
[1758604101486,0.6786,4172.2,4171.8,2.39704279]
[1758604101682,0.22322494,4172.1,4171.8,2.39704279]
[1758604101886,0.1192,4171.9,4171.8,2.39704279]
[1758604102085,0.1192,4171.9,4171.8,2.42101325]
[1758604103450,0.001,4172.1,4172.0,2.39693192]
[1758604103790,0.001,4172.1,4172.0,2.91333575]
[1758604103985,0.001,4172.1,4172.0,3.37676644]
[1758604104869,0.001,4172.1,4172.0,3.40073575]
[1758604105588,0.001,4172.1,4172.0,2.91333575]
[1758604105892,0.001,4172.1,4172.0,3.40073575]
[1758604107272,0.001,4172.1,4172.0,4.19273575]
[1758604107851,0.001,4172.1,4172.0,8.21973575]
[1758604108057,0.001,4172.1,4172.0,8.31496644]
[1758604110164,0.001,4172.1,4172.0,10.38696644]
[1758604110495,0.001,4172.1,4172.0,3.80056644]
[1758604110663,0.001,4172.1,4172.0,6.54113192]
[1758604110862,0.001,4172.1,4172.0,2.51613192]
[1758604111300,0.001,4172.1,4172.0,2.42090123]
[1758604111480,0.001,4172.1,4172.0,2.54010123]
[1758604111680,0.001,4172.1,4172.0,2.51613192]
[1758604111881,0.001,4172.1,4172.0,3.45878939]
[1758604112270,0.001,4172.1,4172.0,2.51613192]
[1758604112595,0.6796,4172.1,4172.0,6.42493192]
[1758604112769,0.001,4172.1,4172.0,6.42493192]
[1758604113170,0.001,4172.1,4172.0,7.32333192]
[1758604113385,0.001,4172.1,4172.0,8.80748621]
[1758604115903,0.001,4172.1,4172.0,8.32008621]
[1758604116130,0.001,4172.1,4172.0,4.53348621]
[1758604116279,0.001,4172.1,4172.0,8.56448621]
[1758604116474,0.001,4172.1,4172.0,4.53348621]
[1758604116803,0.001,4172.1,4172.0,7.53008621]
[1758604117000,0.001,4172.1,4172.0,3.50008621]
[1758604117231,0.001,4172.1,4172.0,6.54713192]
[1758604119013,0.001,4172.1,4172.0,6.54613192]